[Event "Live Chess"]
[Site "Chess.com"]
[Date "2023.05.21"]
[Round "-"]
[White "gamechessandmatch"]
[Black "wadsy27"]
[Result "0-1"]
[WhiteElo "397"]
[BlackElo "2539"]
[TimeControl "300"]
[EndTime "8:09:33 PDT"]
[Termination "wadsy27 won by resignation"]

1. e4 {[%clk 0:04:56.9]} 1... c5 {[%clk 0:04:59.2]} 2. Nf3 {[%clk 0:04:52.7]}
2... e6 {[%clk 0:04:57.5]} 3. Nc3 {[%clk 0:04:45.8]} 3... Nc6 {[%clk 0:04:55.8]}
4. d4 {[%clk 0:04:33.6]} 4... cxd4 {[%clk 0:04:53.7]} 5. Nxd4 {[%clk 0:04:32.6]}
5... Qc7 {[%clk 0:04:53.3]} 6. Be3 {[%clk 0:04:25.3]} 6... a6 {[%clk 0:04:51.3]}
7. Be2 {[%clk 0:04:07.7]} 7... Nf6 {[%clk 0:04:49.5]} 8. O-O {[%clk 0:03:59.8]}
8... Bb4 {[%clk 0:04:47.2]} 9. a3 {[%clk 0:03:50.8]} 9... Bxc3 {[%clk
0:04:42.6]} 10. bxc3 {[%clk 0:03:47.4]} 10... O-O {[%clk 0:04:39.8]} 11. Rb1
{[%clk 0:03:43.5]} 11... Nxe4 {[%clk 0:04:37.3]} 12. Bh5 {[%clk 0:03:24.2]}
12... Nxc3 {[%clk 0:04:35]} 13. Qg4 {[%clk 0:03:08.7]} 13... Nxb1 {[%clk
0:04:33]} 14. Bh6 {[%clk 0:03:03.1]} 14... Qe5 {[%clk 0:04:28.6]} 15. Rxb1
{[%clk 0:02:46.5]} 15... Qxd4 {[%clk 0:04:25.2]} 16. Rb3 {[%clk 0:02:25.8]}
16... Qxg4 {[%clk 0:04:21.8]} 17. Bxg4 {[%clk 0:02:21]} 17... gxh6 {[%clk
0:04:20.7]} 0-1

[Event "Live Chess"]
[Site "Chess.com"]
[Date "2023.05.21"]
[Round "-"]
[White "GEMdzq"]
[Black "BillythekidFellowes"]
[Result "1/2-1/2"]
[WhiteElo "2225"]
[BlackElo "2118"]
[TimeControl "300"]
[EndTime "8:09:34 PDT"]
[Termination "Game drawn by stalemate"]

1. e4 {[%clk 0:04:58.9]} 1... Nc6 {[%clk 0:04:59.2]} 2. Bc4 {[%clk 0:04:57.1]}
2... e6 {[%clk 0:04:58.5]} 3. Nf3 {[%clk 0:04:53.2]} 3... d5 {[%clk 0:04:57.8]}
4. exd5 {[%clk 0:04:50.7]} 4... exd5 {[%clk 0:04:57.7]} 5. Bb3 {[%clk
0:04:46.4]} 5... Nf6 {[%clk 0:04:56.2]} 6. O-O {[%clk 0:04:45.5]} 6... Be6
{[%clk 0:04:55.5]} 7. d4 {[%clk 0:04:42]} 7... Bd6 {[%clk 0:04:54.7]} 8. h3
{[%clk 0:04:38.6]} 8... O-O {[%clk 0:04:53.4]} 9. Re1 {[%clk 0:04:37.3]} 9...
Ne4 {[%clk 0:04:51.7]} 10. Nbd2 {[%clk 0:04:31.6]} 10... f5 {[%clk 0:04:48.7]}
11. Nxe4 {[%clk 0:04:15]} 11... fxe4 {[%clk 0:04:48.6]} 12. Rxe4 {[%clk
0:04:14.1]} 12... dxe4 {[%clk 0:04:46.6]} 13. Bxe6+ {[%clk 0:04:14]} 13... Kh8
{[%clk 0:04:46.2]} 14. Ng5 {[%clk 0:04:13.2]} 14... Qf6 {[%clk 0:04:45.2]} 15.
Be3 {[%clk 0:04:02.6]} 15... h6 {[%clk 0:04:43]} 16. d5 {[%clk 0:03:41.1]} 16...
hxg5 {[%clk 0:03:50.7]} 17. Qh5+ {[%clk 0:03:39.2]} 17... Qh6 {[%clk 0:03:50.1]}
18. Qxh6+ {[%clk 0:03:37.3]} 18... gxh6 {[%clk 0:03:50]} 19. dxc6 {[%clk
0:03:36.6]} 19... bxc6 {[%clk 0:03:48.8]} 20. g4 {[%clk 0:03:31.7]} 20... Be5
{[%clk 0:03:46.2]} 21. c3 {[%clk 0:03:29.3]} 21... Rab8 {[%clk 0:03:44]} 22. b3
{[%clk 0:03:16.3]} 22... Rf6 {[%clk 0:03:34.3]} 23. Bf5 {[%clk 0:03:09.3]} 23...
Rd8 {[%clk 0:03:31.4]} 24. Rc1 {[%clk 0:03:06.3]} 24... a5 {[%clk 0:03:27.9]}
25. Bxe4 {[%clk 0:03:04.9]} 25... a4 {[%clk 0:03:23.7]} 26. b4 {[%clk 0:02:58]}
26... Re8 {[%clk 0:03:15.6]} 27. Bf5 {[%clk 0:02:45.8]} 27... Bf4 {[%clk
0:03:06.6]} 28. Bd4 {[%clk 0:02:38.3]} 28... Be5 {[%clk 0:03:05.5]} 29. Bc5
{[%clk 0:02:34]} 29... Kg7 {[%clk 0:02:56.4]} 30. Rd1 {[%clk 0:02:29.8]} 30...
Bxc3 {[%clk 0:02:43.1]} 31. Rd7+ {[%clk 0:02:28.1]} 31... Rf7 {[%clk 0:02:40.2]}
32. Rd3 {[%clk 0:02:25.7]} 32... Bf6 {[%clk 0:02:35]} 33. Ra3 {[%clk 0:02:04.1]}
33... Ra8 {[%clk 0:02:23.8]} 34. Be4 {[%clk 0:01:59.4]} 34... Bb2 {[%clk
0:02:19]} 35. Rd3 {[%clk 0:01:56.8]} 35... Re8 {[%clk 0:01:47.3]} 36. Bxc6
{[%clk 0:01:54.1]} 36... Re1+ {[%clk 0:01:47.2]} 37. Kg2 {[%clk 0:01:53.3]}
37... a3 {[%clk 0:01:45.7]} 38. Rd8 {[%clk 0:01:40]} 38... Re2 {[%clk
0:01:22.3]} 39. Bd5 {[%clk 0:01:37.7]} 39... Rf4 {[%clk 0:01:10.4]} 40. Rd7+
{[%clk 0:01:14.4]} 40... Kf6 {[%clk 0:01:03.4]} 41. Rxc7 {[%clk 0:00:58]} 41...
Bd4 {[%clk 0:01:02.4]} 42. Rf7+ {[%clk 0:00:44.6]} 42... Kg6 {[%clk 0:01:01.5]}
43. Rxf4 {[%clk 0:00:40.3]} 43... gxf4 {[%clk 0:00:58.8]} 44. Bxd4 {[%clk
0:00:39.1]} 44... Rd2 {[%clk 0:00:53.7]} 45. Be4+ {[%clk 0:00:38.1]} 45... Kg5
{[%clk 0:00:50.8]} 46. Bc5 {[%clk 0:00:28.9]} 46... Kf6 {[%clk 0:00:44.5]} 47.
b5 {[%clk 0:00:22]} 47... Rxa2 {[%clk 0:00:42.7]} 48. b6 {[%clk 0:00:20]} 48...
Ke6 {[%clk 0:00:34.7]} 49. b7 {[%clk 0:00:19.1]} 49... Rb2 {[%clk 0:00:34.1]}
50. Bxa3 {[%clk 0:00:17.3]} 50... Rb3 {[%clk 0:00:32.5]} 51. Bc1 {[%clk
0:00:16.1]} 51... Ke5 {[%clk 0:00:31.6]} 52. Bf3 {[%clk 0:00:14.5]} 52... Rb1
{[%clk 0:00:28.6]} 53. Bd2 {[%clk 0:00:13.3]} 53... Rb5 {[%clk 0:00:26.8]} 54.
Bc3+ {[%clk 0:00:12]} 54... Ke6 {[%clk 0:00:24.5]} 55. h4 {[%clk 0:00:11.6]}
55... Rb3 {[%clk 0:00:22.1]} 56. h5 {[%clk 0:00:11.5]} 56... Kd7 {[%clk
0:00:19.5]} 57. Be5 {[%clk 0:00:10.7]} 57... Rxb7 {[%clk 0:00:15.7]} 58. Bxb7
{[%clk 0:00:08.7]} 58... Ke6 {[%clk 0:00:15.6]} 59. Bg7 {[%clk 0:00:08.3]} 59...
Kd6 {[%clk 0:00:12.7]} 60. Bxh6 {[%clk 0:00:08.2]} 60... Ke5 {[%clk 0:00:12.6]}
61. Kf3 {[%clk 0:00:07.8]} 61... Kd6 {[%clk 0:00:11.9]} 62. Bxf4+ {[%clk
0:00:07.7]} 62... Kc5 {[%clk 0:00:11.8]} 63. g5 {[%clk 0:00:07.6]} 63... Kb6
{[%clk 0:00:11.7]} 64. g6 {[%clk 0:00:07.5]} 64... Kxb7 {[%clk 0:00:11.6]} 65.
h6 {[%clk 0:00:07.3]} 65... Kc6 {[%clk 0:00:11.5]} 66. h7 {[%clk 0:00:07.2]}
66... Kc5 {[%clk 0:00:11.4]} 67. h8=Q {[%clk 0:00:06.8]} 67... Kc4 {[%clk
0:00:11.2]} 68. Qf6 {[%clk 0:00:06.7]} 68... Kd3 {[%clk 0:00:11.1]} 69. g7
{[%clk 0:00:06.5]} 69... Kc2 {[%clk 0:00:11]} 70. g8=Q {[%clk 0:00:06.4]} 70...
Kd1 {[%clk 0:00:10.9]} 71. Qgd8+ {[%clk 0:00:06]} 71... Ke1 {[%clk 0:00:10.8]}
72. Qe6+ {[%clk 0:00:05.6]} 72... Kf1 {[%clk 0:00:10.7]} 73. Qdg8 {[%clk
0:00:05.1]} 1/2-1/2

[Event "Live Chess"]
[Site "Chess.com"]
[Date "2023.05.21"]
[Round "-"]
[White "Biranidun"]
[Black "MartinWalker4"]
[Result "1-0"]
[WhiteElo "2525"]
[BlackElo "2080"]
[TimeControl "300"]
[EndTime "8:09:34 PDT"]
[Termination "Biranidun won by checkmate"]

1. e4 {[%clk 0:04:59]} 1... e5 {[%clk 0:04:56.3]} 2. Nf3 {[%clk 0:04:57.5]} 2...
Nc6 {[%clk 0:04:54.6]} 3. Bc4 {[%clk 0:04:56.8]} 3... Bc5 {[%clk 0:04:52.6]} 4.
c3 {[%clk 0:04:56]} 4... Nf6 {[%clk 0:04:50.8]} 5. d4 {[%clk 0:04:55.6]} 5...
exd4 {[%clk 0:04:49.2]} 6. b4 {[%clk 0:04:55.3]} 6... Bb6 {[%clk 0:04:46.6]} 7.
e5 {[%clk 0:04:54.2]} 7... d5 {[%clk 0:04:44.2]} 8. exf6 {[%clk 0:04:53.2]} 8...
dxc4 {[%clk 0:04:42.7]} 9. Qe2+ {[%clk 0:04:52.9]} 9... Be6 {[%clk 0:04:40.4]}
10. b5 {[%clk 0:04:52.3]} 10... d3 {[%clk 0:04:36.9]} 11. Qe4 {[%clk 0:04:50.9]}
11... Na5 {[%clk 0:04:33.4]} 12. fxg7 {[%clk 0:04:47.9]} 12... Rg8 {[%clk
0:04:31.6]} 13. Bg5 {[%clk 0:04:47.2]} 13... Qd5 {[%clk 0:04:24.7]} 14. Qxh7
{[%clk 0:04:45.3]} 14... Kd7 {[%clk 0:04:23.7]} 15. O-O {[%clk 0:04:33.3]} 15...
Qf5 {[%clk 0:04:17.3]} 16. Qh6 {[%clk 0:03:09.6]} 16... Rae8 {[%clk 0:03:54.9]}
17. Nbd2 {[%clk 0:03:07.8]} 17... Qxb5 {[%clk 0:03:47]} 18. Rae1 {[%clk
0:03:04.7]} 18... Bd5 {[%clk 0:03:19.7]} 19. Rxe8 {[%clk 0:03:00.4]} 19... Rxe8
{[%clk 0:03:01.4]} 20. Ne5+ {[%clk 0:02:53.3]} 20... Kc8 {[%clk 0:02:59.6]} 21.
Qh8 {[%clk 0:02:45.4]} 21... f5 {[%clk 0:02:52.8]} 22. Rb1 {[%clk 0:02:35.9]}
22... Qc5 {[%clk 0:02:45]} 23. Qxe8# {[%clk 0:02:34.3]} 1-0

[Event "Live Chess"]
[Site "Chess.com"]
[Date "2023.05.21"]
[Round "-"]
[White "mattihelenius2"]
[Black "Tema1107"]
[Result "0-1"]
[WhiteElo "495"]
[BlackElo "1937"]
[TimeControl "300"]
[EndTime "8:09:34 PDT"]
[Termination "Tema1107 won by checkmate"]

1. d4 {[%clk 0:04:58.4]} 1... Nf6 {[%clk 0:04:58.8]} 2. c4 {[%clk 0:04:57.1]}
2... e6 {[%clk 0:04:56.3]} 3. Nc3 {[%clk 0:04:54.9]} 3... Bb4 {[%clk 0:04:55]}
4. Bd2 {[%clk 0:04:52]} 4... O-O {[%clk 0:04:53.2]} 5. Nf3 {[%clk 0:04:50.5]}
5... d5 {[%clk 0:04:45.6]} 6. Ne5 {[%clk 0:04:48.2]} 6... Bxc3 {[%clk
0:04:41.8]} 7. Bxc3 {[%clk 0:04:46.3]} 7... Ne4 {[%clk 0:04:41.7]} 8. f3 {[%clk
0:04:14]} 8... Qh4+ {[%clk 0:04:38.9]} 9. g3 {[%clk 0:04:07.4]} 9... Nxg3 {[%clk
0:04:38]} 10. Bg2 {[%clk 0:03:38.9]} 10... Nxh1+ {[%clk 0:04:35.5]} 11. Kf1
{[%clk 0:03:32.2]} 11... Qf2# {[%clk 0:04:33.4]} 0-1

[Event "Live Chess"]
[Site "Chess.com"]
[Date "2023.05.21"]
[Round "-"]
[White "Bob2pen"]
[Black "Daniel_Gliddon_FA"]
[Result "1-0"]
[WhiteElo "1882"]
[BlackElo "1223"]
[TimeControl "300"]
[EndTime "8:09:38 PDT"]
[Termination "Bob2pen won by checkmate"]

1. e4 {[%clk 0:04:56]} 1... d6 {[%clk 0:04:57.5]} 2. d4 {[%clk 0:04:54.6]} 2...
Nf6 {[%clk 0:04:56.3]} 3. Nc3 {[%clk 0:04:52.7]} 3... g6 {[%clk 0:04:55.3]} 4.
f3 {[%clk 0:04:51.8]} 4... Bg7 {[%clk 0:04:54.1]} 5. Be3 {[%clk 0:04:51]} 5...
O-O {[%clk 0:04:50.4]} 6. h4 {[%clk 0:04:49.8]} 6... Nc6 {[%clk 0:04:44.9]} 7.
Qd2 {[%clk 0:04:48.3]} 7... e5 {[%clk 0:04:35.9]} 8. d5 {[%clk 0:04:46.6]} 8...
Ne7 {[%clk 0:04:32.6]} 9. g4 {[%clk 0:04:45.3]} 9... Bxg4 {[%clk 0:04:22.6]} 10.
fxg4 {[%clk 0:04:42.4]} 10... Nxg4 {[%clk 0:04:21.1]} 11. Be2 {[%clk 0:04:34.3]}
11... Nxe3 {[%clk 0:04:19.1]} 12. Qxe3 {[%clk 0:04:32.4]} 12... f5 {[%clk
0:04:13.7]} 13. Nf3 {[%clk 0:04:28.4]} 13... f4 {[%clk 0:04:10.7]} 14. Qf2
{[%clk 0:04:23.9]} 14... c6 {[%clk 0:03:56.7]} 15. Ng5 {[%clk 0:04:21.6]} 15...
cxd5 {[%clk 0:03:46.9]} 16. Ne6 {[%clk 0:04:20.1]} 16... Qa5 {[%clk 0:03:36.2]}
17. Nxf8 {[%clk 0:04:17.9]} 17... Rxf8 {[%clk 0:03:26.7]} 18. exd5 {[%clk
0:04:15.9]} 18... Nxd5 {[%clk 0:03:23.1]} 19. Bc4 {[%clk 0:04:14.5]} 19... Rc8
{[%clk 0:03:14.3]} 20. Qd2 {[%clk 0:04:03.8]} 20... Rxc4 {[%clk 0:02:57.5]} 21.
Nxd5 {[%clk 0:03:56.2]} 21... Re4+ {[%clk 0:02:48]} 22. Kd1 {[%clk 0:03:51.9]}
22... Qxd2+ {[%clk 0:02:43.8]} 23. Kxd2 {[%clk 0:03:50.5]} 23... Rd4+ {[%clk
0:02:42.6]} 24. Kc3 {[%clk 0:03:49.2]} 24... Rxd5 {[%clk 0:02:41.5]} 25. Rad1
{[%clk 0:03:48]} 25... Rc5+ {[%clk 0:02:39]} 26. Kb4 {[%clk 0:03:45.2]} 26...
a5+ {[%clk 0:02:35.6]} 27. Kb3 {[%clk 0:03:43.6]} 27... Rc6 {[%clk 0:02:31.4]}
28. Rd5 {[%clk 0:03:41.6]} 28... f3 {[%clk 0:02:27.3]} 29. Rf1 {[%clk
0:03:36.2]} 29... e4 {[%clk 0:02:25.1]} 30. h5 {[%clk 0:03:30.6]} 30... Rb6+
{[%clk 0:02:11.6]} 31. Kc4 {[%clk 0:03:28]} 31... Rxb2 {[%clk 0:02:09.7]} 32.
Rxd6 {[%clk 0:03:24.6]} 32... Rxc2+ {[%clk 0:02:08.4]} 33. Kd5 {[%clk
0:03:23.4]} 33... Rd2+ {[%clk 0:01:55.8]} 34. Ke6 {[%clk 0:03:21.8]} 34... f2
{[%clk 0:01:38.7]} 35. Rxd2 {[%clk 0:03:19.1]} 35... e3 {[%clk 0:01:35.4]} 36.
Re2 {[%clk 0:03:15.2]} 36... Bd4 {[%clk 0:01:33.4]} 37. Kd5 {[%clk 0:03:11.1]}
37... Ba7 {[%clk 0:01:30.4]} 38. Ke4 {[%clk 0:03:08.7]} 38... b5 {[%clk
0:01:28.5]} 39. Rxe3 {[%clk 0:03:07.6]} 39... Bxe3 {[%clk 0:01:25.2]} 40. Kxe3
{[%clk 0:03:06.7]} 40... b4 {[%clk 0:01:24]} 41. hxg6 {[%clk 0:03:05.3]} 41...
hxg6 {[%clk 0:01:20.7]} 42. Rxf2 {[%clk 0:03:03.2]} 42... a4 {[%clk 0:01:19.1]}
43. Rb2 {[%clk 0:03:01.4]} 43... b3 {[%clk 0:01:13.6]} 44. axb3 {[%clk
0:03:00.6]} 44... axb3 {[%clk 0:01:12.5]} 45. Rxb3 {[%clk 0:02:59.6]} 45... Kg7
{[%clk 0:01:11.1]} 46. Kf4 {[%clk 0:02:58.9]} 46... Kh6 {[%clk 0:01:08.5]} 47.
Rh3+ {[%clk 0:02:54]} 47... Kg7 {[%clk 0:01:06.7]} 48. Kg5 {[%clk 0:02:53.2]}
48... Kf7 {[%clk 0:01:04.5]} 49. Re3 {[%clk 0:02:52]} 49... Kg7 {[%clk
0:01:03.3]} 50. Re7+ {[%clk 0:02:50.7]} 50... Kf8 {[%clk 0:01:02.2]} 51. Ra7
{[%clk 0:02:49.5]} 51... Kg8 {[%clk 0:00:59.4]} 52. Kxg6 {[%clk 0:02:44]} 52...
Kf8 {[%clk 0:00:58]} 53. Kf6 {[%clk 0:02:43.3]} 53... Ke8 {[%clk 0:00:54.5]} 54.
Ke6 {[%clk 0:02:41.9]} 54... Kd8 {[%clk 0:00:52.8]} 55. Kd6 {[%clk 0:02:40.2]}
55... Ke8 {[%clk 0:00:50.4]} 56. Rb7 {[%clk 0:02:36.4]} 56... Kf8 {[%clk
0:00:48.6]} 57. Ke6 {[%clk 0:02:35.5]} 57... Ke8 {[%clk 0:00:47.1]} 58. Rb8#
{[%clk 0:02:34.3]} 1-0

[Event "Live Chess"]
[Site "Chess.com"]
[Date "2023.05.21"]
[Round "-"]
[White "DRS44"]
[Black "Ian-Morley"]
[Result "0-1"]
[WhiteElo "1256"]
[BlackElo "1112"]
[TimeControl "300"]
[EndTime "8:09:39 PDT"]
[Termination "Ian-Morley won on time"]

1. e4 {[%clk 0:04:53.7]} 1... e5 {[%clk 0:04:57]} 2. d4 {[%clk 0:04:49.7]} 2...
exd4 {[%clk 0:04:55.7]} 3. c3 {[%clk 0:04:45.4]} 3... dxc3 {[%clk 0:04:54.7]} 4.
Bc4 {[%clk 0:04:38.5]} 4... cxb2 {[%clk 0:04:52.4]} 5. Bxb2 {[%clk 0:04:18.9]}
5... d5 {[%clk 0:04:50.7]} 6. Bxd5 {[%clk 0:04:10.6]} 6... Nf6 {[%clk
0:03:38.7]} 7. Bxf7+ {[%clk 0:02:55.8]} 7... Kxf7 {[%clk 0:03:36.5]} 8. Qxd8
{[%clk 0:02:50.7]} 8... Bb4+ {[%clk 0:03:17.8]} 9. Qd2 {[%clk 0:02:45.2]} 9...
Bxd2+ {[%clk 0:03:14.8]} 10. Nxd2 {[%clk 0:02:41.4]} 10... Re8 {[%clk
0:03:12.1]} 11. f3 {[%clk 0:02:29.8]} 11... Nc6 {[%clk 0:03:08.9]} 12. Ne2
{[%clk 0:02:25]} 12... Nb4 {[%clk 0:03:03.3]} 13. O-O {[%clk 0:02:18.9]} 13...
Nc2 {[%clk 0:02:56.6]} 14. Rac1 {[%clk 0:02:09.2]} 14... Ne3 {[%clk 0:02:53.7]}
15. Rfe1 {[%clk 0:02:03.7]} 15... b5 {[%clk 0:02:44.6]} 16. Nd4 {[%clk
0:01:52.9]} 16... Nc4 {[%clk 0:02:42.5]} 17. Nxc4 {[%clk 0:01:48.4]} 17... bxc4
{[%clk 0:02:41.5]} 18. Rxc4 {[%clk 0:01:39.2]} 18... Ba6 {[%clk 0:02:37.2]} 19.
Rc3 {[%clk 0:01:34.5]} 19... Rab8 {[%clk 0:02:34.8]} 20. Ba3 {[%clk 0:01:25]}
20... Rbc8 {[%clk 0:02:17.9]} 21. Rec1 {[%clk 0:01:09.9]} 21... Red8 {[%clk
0:02:12.9]} 22. Rxc7+ {[%clk 0:01:02.1]} 22... Rxc7 {[%clk 0:02:09.5]} 23. Rxc7+
{[%clk 0:00:56.2]} 23... Rd7 {[%clk 0:02:08.4]} 24. Rxd7+ {[%clk 0:00:52.6]}
24... Nxd7 {[%clk 0:02:07.4]} 25. Nf5 {[%clk 0:00:46]} 25... Nb6 {[%clk
0:02:03.6]} 26. Bb2 {[%clk 0:00:35.7]} 26... g6 {[%clk 0:02:00.5]} 27. Nh6+
{[%clk 0:00:28.8]} 27... Ke6 {[%clk 0:01:57.9]} 28. Ng4 {[%clk 0:00:24.7]} 28...
Nc4 {[%clk 0:01:54.7]} 29. h4 {[%clk 0:00:22.6]} 29... Nxb2 {[%clk 0:01:52.7]}
30. Ne3 {[%clk 0:00:14.7]} 30... Nd3 {[%clk 0:00:55.1]} 0-1

[Event "Live Chess"]
[Site "Chess.com"]
[Date "2023.05.21"]
[Round "-"]
[White "Alfiedog12"]
[Black "EdenHazard8"]
[Result "0-1"]
[WhiteElo "870"]
[BlackElo "1925"]
[TimeControl "300"]
[EndTime "8:09:41 PDT"]
[Termination "EdenHazard8 won by checkmate"]

1. d4 {[%clk 0:04:56.7]} 1... d5 {[%clk 0:04:59]} 2. Bf4 {[%clk 0:04:55.1]} 2...
Nf6 {[%clk 0:04:58]} 3. Nf3 {[%clk 0:04:54.1]} 3... c5 {[%clk 0:04:57.3]} 4. c3
{[%clk 0:04:51.9]} 4... Nc6 {[%clk 0:04:55.9]} 5. Nbd2 {[%clk 0:04:46.8]} 5...
Qb6 {[%clk 0:04:55.8]} 6. Qc2 {[%clk 0:04:44.8]} 6... g6 {[%clk 0:04:48.3]} 7.
e3 {[%clk 0:04:42]} 7... cxd4 {[%clk 0:04:46.7]} 8. exd4 {[%clk 0:04:40.4]} 8...
Bf5 {[%clk 0:04:46]} 9. Bd3 {[%clk 0:04:36.9]} 9... e6 {[%clk 0:04:42.7]} 10.
Bxf5 {[%clk 0:04:34.8]} 10... gxf5 {[%clk 0:04:42.6]} 11. Bg5 {[%clk 0:04:26]}
11... Be7 {[%clk 0:04:41.3]} 12. O-O-O {[%clk 0:04:14.3]} 12... Rg8 {[%clk
0:04:38.9]} 13. h4 {[%clk 0:04:09.8]} 13... O-O-O {[%clk 0:04:37.5]} 14. g3
{[%clk 0:04:05.6]} 14... Kb8 {[%clk 0:04:36.1]} 15. Qb3 {[%clk 0:04:01.9]} 15...
Ne4 {[%clk 0:04:34.6]} 16. Qxb6 {[%clk 0:03:58.4]} 16... axb6 {[%clk 0:04:34.5]}
17. Bxe7 {[%clk 0:03:54.5]} 17... Nxe7 {[%clk 0:04:34.4]} 18. Rh2 {[%clk
0:03:46.7]} 18... f6 {[%clk 0:04:30.9]} 19. Nb3 {[%clk 0:03:25.6]} 19... h5
{[%clk 0:04:22.9]} 20. a4 {[%clk 0:03:17.7]} 20... Rg4 {[%clk 0:04:20.6]} 21. a5
{[%clk 0:03:08.7]} 21... bxa5 {[%clk 0:04:18.4]} 22. Nxa5 {[%clk 0:03:07]} 22...
f4 {[%clk 0:04:14.2]} 23. gxf4 {[%clk 0:02:58.2]} 23... Rxf4 {[%clk 0:04:07.9]}
24. Nd2 {[%clk 0:02:50.1]} 24... Nxf2 {[%clk 0:04:03.7]} 25. Ndb3 {[%clk
0:02:29.4]} 25... Ne4 {[%clk 0:03:52.6]} 26. Nc5 {[%clk 0:02:12.7]} 26... Nxc5
{[%clk 0:03:46.2]} 27. dxc5 {[%clk 0:02:07.4]} 27... Rg8 {[%clk 0:03:43.7]} 28.
Nb3 {[%clk 0:01:48.2]} 28... Rgg4 {[%clk 0:03:37.5]} 29. Nd4 {[%clk 0:01:41.7]}
29... e5 {[%clk 0:03:35.5]} 30. Ne6 {[%clk 0:01:35.7]} 30... Rxh4 {[%clk
0:03:33]} 31. Rxh4 {[%clk 0:01:20.9]} 31... Rxh4 {[%clk 0:03:32.9]} 32. Rf1
{[%clk 0:01:05]} 32... f5 {[%clk 0:03:30.3]} 33. Ng7 {[%clk 0:01:00.3]} 33... f4
{[%clk 0:03:26.6]} 34. Re1 {[%clk 0:00:59]} 34... e4 {[%clk 0:03:23.5]} 35. Ne6
{[%clk 0:00:53.8]} 35... f3 {[%clk 0:03:21]} 36. Kd2 {[%clk 0:00:45.9]} 36...
Nf5 {[%clk 0:03:17.5]} 37. Nd4 {[%clk 0:00:39.2]} 37... Rh2+ {[%clk 0:03:14.4]}
38. Kd1 {[%clk 0:00:36.3]} 38... f2 {[%clk 0:03:12.9]} 39. Rf1 {[%clk
0:00:35.6]} 39... Ne3+ {[%clk 0:03:11.3]} 40. Ke2 {[%clk 0:00:31.7]} 40... Nxf1
{[%clk 0:03:11.2]} 41. Kxf1 {[%clk 0:00:30.2]} 41... e3 {[%clk 0:03:09.9]} 42.
Ne2 {[%clk 0:00:26.4]} 42... Rh1+ {[%clk 0:03:08]} 43. Kg2 {[%clk 0:00:22.3]}
43... f1=Q+ {[%clk 0:03:07.9]} 44. Kg3 {[%clk 0:00:18]} 44... Rh3# {[%clk
0:03:07.8]} 0-1

[Event "Live Chess"]
[Site "Chess.com"]
[Date "2023.05.21"]
[Round "-"]
[White "onemoretime1975"]
[Black "peter-785"]
[Result "1-0"]
[WhiteElo "1845"]
[BlackElo "1171"]
[TimeControl "300"]
[EndTime "8:09:53 PDT"]
[Termination "onemoretime1975 won by resignation"]

1. e4 {[%clk 0:04:58.2]} 1... c5 {[%clk 0:04:59]} 2. Nf3 {[%clk 0:04:56.7]} 2...
e6 {[%clk 0:04:57.8]} 3. g3 {[%clk 0:04:53.8]} 3... d6 {[%clk 0:04:56.5]} 4. d3
{[%clk 0:04:52.8]} 4... Nc6 {[%clk 0:04:54.8]} 5. Bg2 {[%clk 0:04:51.8]} 5...
Qc7 {[%clk 0:04:54.3]} 6. c3 {[%clk 0:04:50.8]} 6... Be7 {[%clk 0:04:53.9]} 7.
Be3 {[%clk 0:04:48.5]} 7... Nf6 {[%clk 0:04:53.1]} 8. h3 {[%clk 0:04:46.7]} 8...
O-O {[%clk 0:04:52.6]} 9. O-O {[%clk 0:04:44.6]} 9... a6 {[%clk 0:04:52]} 10.
Nbd2 {[%clk 0:04:42.7]} 10... b5 {[%clk 0:04:51.5]} 11. a3 {[%clk 0:04:41.2]}
11... Bb7 {[%clk 0:04:50.9]} 12. b4 {[%clk 0:04:37.4]} 12... cxb4 {[%clk
0:04:48.3]} 13. cxb4 {[%clk 0:04:36.4]} 13... Ne5 {[%clk 0:04:46.2]} 14. Rc1
{[%clk 0:04:32.6]} 14... Nxf3+ {[%clk 0:04:39.7]} 15. Nxf3 {[%clk 0:04:27.7]}
15... Qd7 {[%clk 0:04:37.6]} 16. Nd4 {[%clk 0:04:26.1]} 16... Rac8 {[%clk
0:04:33.5]} 17. Qb3 {[%clk 0:04:24]} 17... Rxc1 {[%clk 0:04:19.8]} 18. Rxc1
{[%clk 0:04:21.7]} 18... Rc8 {[%clk 0:04:19.3]} 19. Rxc8+ {[%clk 0:04:19]} 19...
Qxc8 {[%clk 0:04:16.4]} 20. Qc2 {[%clk 0:04:08]} 20... Qxc2 {[%clk 0:04:07.8]}
21. Nxc2 {[%clk 0:04:06.5]} 21... e5 {[%clk 0:04:00.4]} 22. Bg5 {[%clk
0:04:02.1]} 22... h6 {[%clk 0:03:58.5]} 23. Bxf6 {[%clk 0:03:59.7]} 23... Bxf6
{[%clk 0:03:57.3]} 24. Ne3 {[%clk 0:03:57.9]} 24... g6 {[%clk 0:03:50.1]} 25. g4
{[%clk 0:03:55.5]} 25... Bd8 {[%clk 0:03:38.2]} 26. Bf3 {[%clk 0:03:51.8]} 26...
Bb6 {[%clk 0:03:36.6]} 27. Nc2 {[%clk 0:03:47.6]} 27... f6 {[%clk 0:03:33.6]}
28. Bd1 {[%clk 0:03:43.8]} 28... Kf7 {[%clk 0:03:32.3]} 29. Kf1 {[%clk
0:03:42.8]} 29... g5 {[%clk 0:03:30.3]} 30. f3 {[%clk 0:03:41.4]} 30... a5
{[%clk 0:03:15.6]} 31. Ke2 {[%clk 0:03:39.3]} 31... axb4 {[%clk 0:03:13.3]} 32.
axb4 {[%clk 0:03:36.7]} 32... d5 {[%clk 0:03:09.4]} 33. Na3 {[%clk 0:03:33.3]}
33... Bc6 {[%clk 0:03:07.1]} 34. Bb3 {[%clk 0:03:26.9]} 34... Ke7 {[%clk
0:02:58.5]} 35. Bxd5 {[%clk 0:03:09.6]} 35... Bxd5 {[%clk 0:02:48.6]} 36. exd5
{[%clk 0:03:08.5]} 36... Kd6 {[%clk 0:02:47.6]} 37. Nxb5+ {[%clk 0:03:06.8]}
37... Kxd5 {[%clk 0:02:45.8]} 38. Kd2 {[%clk 0:03:00.3]} 38... Kc6 {[%clk
0:02:34.4]} 39. Nc3 {[%clk 0:02:55.1]} 39... Bd4 {[%clk 0:02:31.1]} 40. Ne4
{[%clk 0:02:52.7]} 40... Kb5 {[%clk 0:02:24.9]} 41. Nxf6 {[%clk 0:02:51.3]}
41... Kxb4 {[%clk 0:02:18.5]} 42. Ng8 {[%clk 0:02:49.5]} 42... Bc3+ {[%clk
0:02:08.4]} 43. Ke3 {[%clk 0:02:45.9]} 43... Kc5 {[%clk 0:02:07.4]} 44. Ke4
{[%clk 0:02:43.1]} 44... Kd6 {[%clk 0:02:06.1]} 45. Nxh6 {[%clk 0:02:41.7]}
45... Be1 {[%clk 0:02:02.2]} 46. Nf7+ {[%clk 0:02:39.2]} 46... Ke6 {[%clk
0:02:00]} 47. Nxe5 {[%clk 0:02:35.2]} 47... Bh4 {[%clk 0:01:56.2]} 48. d4 {[%clk
0:02:30.8]} 48... Kd6 {[%clk 0:01:54.6]} 49. Ng6 {[%clk 0:02:14.4]} 49... Bg3
{[%clk 0:01:53.5]} 50. f4 {[%clk 0:02:10.3]} 50... gxf4 {[%clk 0:01:51.6]} 51.
Nxf4 {[%clk 0:02:08.7]} 1-0